[Event "50th La Roda Open 2024"]
[Site "La Roda"]
[Date "2024.03.29"]
[Round "4.12"]
[White "Ramiro Ovejero, Juan Luis"]
[Black "Ruiz Vazquez, Javier"]
[Result "1/2-1/2"]
[ECO "D03"]
[WhiteElo "2316"]
[BlackElo "2050"]
[Annotator "RC"]
[PlyCount "131"]
[EventDate "2024.03.27"]
[EventType "swiss"]
[EventCountry "ESP"]
[SourceTitle "playchess.com"]
[Source "ChessBase"]
[SourceQuality "1"]
[TimeControl "5400+30"]

1. d4 {[%emt 0:00:06]} Nf6 {[%emt 0:00:16]} 2. Nf3 {[%emt 0:00:08]} e6 {[%emt 0:00:09]} 3. Bg5 {[%emt 0:00:08]} d5 {[%emt 0:03:11]} 4. Nbd2 {[%emt 0:00:37]} Be7 {[%emt 0:01:39]} 5. e3 {[%emt 0:00:46]} O-O {[%emt 0:01:07]} 6. Bd3 {[%emt 0:00:35]} Nbd7 {[%emt 0:01:14]} 7. c3 {[%emt 0:04:35]} Re8 {[%emt 0:02:46]} 8. Qe2 {[%emt 0:02:07]} c5 {[%emt 0:03:31]} 9. Ne5 {[%emt 0:10:05]} Nxe5 {[%emt 0:04:42]} 10. dxe5 {[%emt 0:00:05]} Nd7 {[%emt 0:00:14]} 11. Bxe7 {[%emt 0:00:06]} Qxe7 {[%emt 0:00:09]} 12. f4 {[%emt 0:00:36]} f6 {[%emt 0:06:09]} 13. exf6 {[%emt 0:01:12]} Nxf6 {[%emt 0:01:53]} 14. Nf3 {[%emt 0:00:37]} Bd7 {[%emt 0:02:43]} 15. Ne5 {[%emt 0:21:24]} Bc6 {[%emt 0:04:23]} 16. O-O {[%emt 0:05:41]} c4 {[%emt 0:03:57]} 17. Bc2 {[%emt 0:01:10]} Qc5 {[%emt 0:00:18]} 18. Rad1 {[%emt 0:10:36]} Re7 {[%emt 0:01:11]} 19. Kh1 {[%emt 0:15:46]} Rf8 {[%emt 0:02:17]} 20. Rd4 {[%emt 0:01:38]} Be8 {[%emt 0:00:58]} 21. e4 {[%emt 0:06:40]} b5 {[%emt 0:04:35]} 22. Qd2 {[%emt 0:03:04]} a5 {[%emt 0:08:40]} 23. a3 {[%emt 0:00:31]} Rb7 {[%emt 0:09:34]} 24. Re1 {[%emt 0:01:20]} b4 {[%emt 0:04:52]} 25. axb4 {[%emt 0:00:04]} axb4 {[%emt 0:00:12]} 26. exd5 {[%emt 0:02:01]} exd5 {[%emt 0:02:21]} 27. Bf5 {[%emt 0:00:21]} bxc3 {[%emt 0:01:56]} 28. bxc3 {[%emt 0:00:17]} Re7 {[%emt 0:04:26]} 29. g3 {[%emt 0:03:49]} Bf7 {[%emt 0:03:29]} 30. Nxf7 {[%emt 0:02:47]} Kxf7 {[%emt 0:00:17]} 31. Rxe7+ {[%emt 0:00:24]} Qxe7 {[%emt 0:03:18]} 32. Rxd5 {[%emt 0:01:21]} Nxd5 {[%emt 0:01:22]} 33. Qxd5+ {[%emt 0:00:04]} Kf6 {[%emt 0:05:07]} 34. Be4 {[%emt 0:00:12]} g6 {[%emt 0:02:50]} 35. Qd4+ {[%emt 0:01:41]} Kf7 {[%emt 0:00:50]} 36. Bd5+ {[%emt 0:00:08]} Ke8 {[%emt 0:00:16]} 37. Bc6+ {[%emt 0:00:06]} Kf7 {[%emt 0:00:06]} 38. Bd5+ {[%emt 0:00:01]} Ke8 {[%emt 0:00:13]} 39. Qxc4 {[%emt 0:01:08]} Kd8 {[%emt 0:03:48]} 40. Kg2 {[%emt 0:02:03]} g5 {[%emt 0:01:11]} 41. Be6 {[%emt 0:00:43]} Qb7+ {[%emt 0:01:09]} 42. Kh3 {[%emt 0:00:20]} gxf4 {[%emt 0:03:02]} 43. Qd4+ {[%emt 0:00:54]} Ke8 {[%emt 0:00:00]} 44. Qe5 {[%emt 0:00:29]} Kd8 {[%emt 0:01:01]} 45. Qd4+ {[%emt 0:02:39]} Ke8 {[%emt 0:00:08]} 46. Qe5 {[%emt 0:00:23]} Kd8 {[%emt 0:00:34]} 47. Qg5+ {[%emt 0:00:40]} Ke8 {[%emt 0:00:52]} 48. Qh5+ {[%emt 0:00:06]} Kd8 {[%emt 0:00:26]} 49. gxf4 {[%emt 0:00:24]} Qe4 {[%emt 0:02:04]} 50. Qa5+ {[%emt 0:00:35]} Ke8 {[%emt 0:02:01]} 51. Qb5+ {[%emt 0:00:14]} Ke7 {[%emt 0:00:17]} 52. Qc5+ {[%emt 0:00:19]} Ke8 {[%emt 0:00:15]} 53. Qh5+ {[%emt 0:01:29]} Ke7 {[%emt 0:00:30]} 54. f5 {[%emt 0:01:12]} Qe3+ {[%emt 0:01:08]} 55. Kg2 {[%emt 0:00:18]} Qd2+ {[%emt 0:00:11]} 56. Kf1 {[%emt 0:00:20]} Qf4+ {[%emt 0:01:15]} 57. Ke2 {[%emt 0:00:37]} Qe5+ {[%emt 0:00:33]} 58. Kd1 {[%emt 0:00:45]} Rd8+ {[%emt 0:00:12]} 59. Kc2 {[%emt 0:00:08]} Qe4+ {[%emt 0:00:13]} 60. Kb2 {[%emt 0:00:39]} Qg2+ {[%emt 0:01:03]} 61. Kb3 {[%emt 0:00:31]} Rb8+ {[%emt 0:00:48]} 62. Kc4 {[%emt 0:00:16]} Qe4+ {[%emt 0:00:30]} 63. Kc5 {[%emt 0:00:02]} Qe5+ {[%emt 0:00:01]} 64. Kc4 {[%emt 0:00:21]} Qe4+ {[%emt 0:00:05]} 65. Kc5 {[%emt 0:00:04]} Qe5+ {[%emt 0:01:03]} 66. Kc4 {[%emt 0:00:01]} 1/2-1/2

[Event "50th La Roda Open 2024"]
[Site "La Roda"]
[Date "2024.03.29"]
[Round "4.13"]
[White "Collado Alcolado, Angel"]
[Black "Lopez Mijail, Nicolas"]
[Result "1/2-1/2"]
[ECO "D01"]
[WhiteElo "2039"]
[BlackElo "2231"]
[Annotator "RC"]
[PlyCount "54"]
[EventDate "2024.03.27"]
[EventType "swiss"]
[EventCountry "ESP"]
[SourceTitle "playchess.com"]
[Source "ChessBase"]
[SourceQuality "1"]
[TimeControl "5400+30"]

1. d4 {[%emt 0:00:03]} Nf6 {[%emt 0:01:08]} 2. Nc3 {[%emt 0:00:07]} d5 {[%emt 0:00:06]} 3. Bg5 {[%emt 0:00:05]} h6 {[%emt 0:00:31]} 4. Bh4 {[%emt 0:00:15]} e6 {[%emt 0:07:19]} 5. Nf3 {[%emt 0:00:20]} Be7 {[%emt 0:01:40]} 6. Bxf6 {[%emt 0:01:37]} Bxf6 {[%emt 0:00:30]} 7. e4 {[%emt 0:00:04]} O-O {[%emt 0:09:18]} 8. Qd2 {[%emt 0:06:41]} c5 {[%emt 0:20:05]} 9. e5 {[%emt 0:07:23]} cxd4 {[%emt 0:01:21]} 10. Qxd4 {[%emt 0:02:21]} Nc6 {[%emt 0:00:09]} 11. Qf4 {[%emt 0:00:02]} Qc7 {[%emt 0:01:34]} 12. Nb5 {[%emt 0:01:01]} Qb8 {[%emt 0:00:11]} 13. O-O-O {[%emt 0:08:14]} Nxe5 {[%emt 0:03:36]} 14. Qg3 {[%emt 0:00:13]} a6 {[%emt 0:06:50]} 15. Nbd4 {[%emt 0:01:50]} Nxf3 {[%emt 0:00:18]} 16. Qxf3 {[%emt 0:03:59]} b5 {[%emt 0:09:36]} 17. h4 {[%emt 0:02:25]} Qb6 {[%emt 0:04:58]} 18. Ne2 {[%emt 0:06:48]} Bb7 {[%emt 0:00:32]} 19. Ng3 {[%emt 0:00:59]} Rfe8 {[%emt 0:12:46]} 20. Nh5 {[%emt 0:05:06]} e5 {[%emt 0:00:04]} 21. Rh3 {[%emt 0:01:56]} e4 {[%emt 0:00:42]} 22. Nxf6+ {[%emt 0:04:20]} Qxf6 {[%emt 0:00:06]} 23. Qxf6 {[%emt 0:00:10]} gxf6 {[%emt 0:00:03]} 24. Rd4 {[%emt 0:00:10]} Kf8 {[%emt 0:02:39]} 25. a4 {[%emt 0:01:31]} Bc6 {[%emt 0:07:55]} 26. Rc3 {[%emt 0:00:43]} Rec8 {[%emt 0:03:02]} 27. g3 {[%emt 0:00:26]} bxa4 {[%emt 0:07:01]} 1/2-1/2

[Event "50th La Roda Open 2024"]
[Site "La Roda"]
[Date "2024.03.29"]
[Round "4.14"]
[White "Ruano Azua, Jonathan"]
[Black "Cruz Lledo, Pablo"]
[Result "0-1"]
[ECO "B01"]
[WhiteElo "1977"]
[BlackElo "2353"]
[Annotator "RC"]
[PlyCount "22"]
[EventDate "2024.03.27"]
[EventType "swiss"]
[EventCountry "ESP"]
[SourceTitle "playchess.com"]
[Source "ChessBase"]
[SourceQuality "1"]
[TimeControl "5400+30"]

1. e4 {[%emt 1:31:00]} d5 {[%emt 0:00:54]} 2. exd5 {[%emt 0:00:00]} Qxd5 {[%emt 0:00:05]} 3. Nc3 {[%emt 0:00:00]} Qd6 {[%emt 0:00:03]} 4. d4 {[%emt 0:00:00]} Nf6 {[%emt 0:00:05]} 5. Nf3 {[%emt 0:00:00]} g6 {[%emt 0:00:06]} 6. h3 {[%emt 0:00:00]} Bg7 {[%emt 0:00:07]} 7. Be3 {[%emt 0:00:00]} O-O {[%emt 0:00:28]} 8. Qd2 {[%emt 0:00:00]} a6 {[%emt 0:03:27]} 9. g4 {[%emt 0:00:00]} b5 {[%emt 0:01:21]} 10. a3 {[%emt 0:00:00]} Bb7 {[%emt 0:01:59]} 11. Bf4 {[%emt 0:00:00]} Qe6+ {[%emt 0:01:54]} 0-1

[Event "50th La Roda Open 2024"]
[Site "La Roda"]
[Date "2024.03.29"]
[Round "4.15"]
[White "Martinez Herranz, Francisco Jose"]
[Black "Gomez Falagan, Daniel"]
[Result "0-1"]
[ECO "C02"]
[WhiteElo "1967"]
[BlackElo "2319"]
[Annotator "RC"]
[PlyCount "84"]
[EventDate "2024.03.27"]
[EventType "swiss"]
[EventCountry "ESP"]
[SourceTitle "playchess.com"]
[Source "ChessBase"]
[SourceQuality "1"]
[TimeControl "5400+30"]

1. e4 {[%emt 0:00:04]} e6 {[%emt 0:00:02]} 2. d4 {[%emt 0:00:25]} d5 {[%emt 0:00:04]} 3. e5 {[%emt 0:00:06]} c5 {[%emt 0:00:05]} 4. c3 {[%emt 0:00:04]} Qb6 {[%emt 0:00:04]} 5. Nf3 {[%emt 0:00:08]} Nc6 {[%emt 0:00:21]} 6. Bd3 {[%emt 0:00:08]} cxd4 {[%emt 0:00:10]} 7. O-O {[%emt 0:00:19]} Bd7 {[%emt 0:00:03]} 8. Re1 {[%emt 0:00:07]} Nge7 {[%emt 0:02:48]} 9. h4 {[%emt 0:00:25]} Rc8 {[%emt 0:04:46]} 10. Nbd2 {[%emt 0:04:07]} dxc3 {[%emt 0:02:43]} 11. bxc3 {[%emt 0:00:03]} Na5 {[%emt 0:00:08]} 12. Rb1 {[%emt 0:11:14]} Qc7 {[%emt 0:00:35]} 13. Ng5 {[%emt 0:27:42]} h6 {[%emt 0:36:14]} 14. Nxf7 {[%emt 0:13:04]} Kxf7 {[%emt 0:00:13]} 15. Ba3 {[%emt 0:01:31]} Nf5 {[%emt 0:04:20]} 16. Bxf5 {[%emt 0:02:19]} exf5 {[%emt 0:00:25]} 17. e6+ {[%emt 0:01:18]} Bxe6 {[%emt 0:01:53]} 18. Bxf8 {[%emt 0:03:25]} Rhxf8 {[%emt 0:00:13]} 19. Qh5+ {[%emt 0:00:35]} g6 {[%emt 0:04:33]} 20. Qxh6 {[%emt 0:00:12]} Rh8 {[%emt 0:00:17]} 21. Qe3 {[%emt 0:00:22]} Rce8 {[%emt 0:00:48]} 22. Nf3 {[%emt 0:01:46]} Bc8 {[%emt 0:03:34]} 23. Ng5+ {[%emt 0:01:59]} Kg7 {[%emt 0:00:04]} 24. Qd4+ {[%emt 0:03:20]} Kh6 {[%emt 0:00:04]} 25. Qxd5 {[%emt 0:04:09]} Rhf8 {[%emt 0:00:19]} 26. Rxe8 {[%emt 0:02:17]} Rxe8 {[%emt 0:00:07]} 27. Nf7+ {[%emt 0:02:21]} Kg7 {[%emt 0:00:45]} 28. Nd6 {[%emt 0:00:53]} Rd8 {[%emt 0:01:59]} 29. Rd1 {[%emt 0:16:52]} Kh7 {[%emt 0:00:35]} 30. h5 {[%emt 0:00:51]} Nc4 {[%emt 0:02:47]} 31. hxg6+ {[%emt 0:00:30]} Kxg6 {[%emt 0:00:06]} 32. Rd3 {[%emt 0:02:19]} Qxd6 {[%emt 0:00:32]} 33. Rg3+ {[%emt 0:00:06]} Kf6 {[%emt 0:00:05]} 34. Qxc4 {[%emt 0:00:34]} Qd1+ {[%emt 0:00:39]} 35. Kh2 {[%emt 0:00:16]} Rh8+ {[%emt 0:00:06]} 36. Rh3 {[%emt 0:00:01]} Rxh3+ {[%emt 0:02:07]} 37. gxh3 {[%emt 0:00:40]} Qd6+ {[%emt 0:00:38]} 38. Kg1 {[%emt 0:00:10]} Bd7 {[%emt 0:01:00]} 39. Qh4+ {[%emt 0:00:17]} Ke6 {[%emt 0:00:19]} 40. Qc4+ {[%emt 0:00:39]} Qd5 {[%emt 0:00:10]} 41. Qe2+ {[%emt 0:00:28]} Qe4 {[%emt 0:00:07]} 42. Qh5 {[%emt 0:00:31]} Qe1+ {[%emt 0:34:42]} 0-1

[Event "50th La Roda Open 2024"]
[Site "La Roda"]
[Date "2024.03.29"]
[Round "4.16"]
[White "Calvo Gutierrez, Hector"]
[Black "Alfaya Marcelo, Roberto"]
[Result "0-1"]
[ECO "E14"]
[WhiteElo "1951"]
[BlackElo "2311"]
[Annotator "RC"]
[PlyCount "156"]
[EventDate "2024.03.27"]
[EventType "swiss"]
[EventCountry "ESP"]
[SourceTitle "playchess.com"]
[Source "ChessBase"]
[SourceQuality "1"]
[TimeControl "5400+30"]

1. d4 {[%emt 0:07:06]} d5 {[%emt 0:00:09]} 2. c4 {[%emt 0:00:09]} e6 {[%emt 0:00:06]} 3. Nf3 {[%emt 0:00:16]} Nf6 {[%emt 0:00:07]} 4. Nc3 {[%emt 0:00:24]} a6 {[%emt 0:00:41]} 5. e3 {[%emt 0:01:26]} b6 {[%emt 0:02:40]} 6. Bd3 {[%emt 0:04:47]} Bb7 {[%emt 0:00:26]} 7. cxd5 {[%emt 0:01:16]} exd5 {[%emt 0:00:12]} 8. O-O {[%emt 0:01:15]} Bd6 {[%emt 0:00:07]} 9. b3 {[%emt 0:03:32]} Nbd7 {[%emt 0:00:34]} 10. Bb2 {[%emt 0:00:25]} O-O {[%emt 0:00:12]} 11. Rc1 {[%emt 0:03:24]} Ne4 {[%emt 0:00:42]} 12. Ne2 {[%emt 0:01:46]} Qe7 {[%emt 0:10:05]} 13. Ng3 {[%emt 0:01:43]} f5 {[%emt 0:01:57]} 14. Re1 {[%emt 0:04:10]} g6 {[%emt 0:08:56]} 15. Qc2 {[%emt 0:01:28]} Rf7 {[%emt 0:03:52]} 16. Nf1 {[%emt 0:04:08]} g5 {[%emt 0:09:21]} 17. Re2 {[%emt 0:05:55]} g4 {[%emt 0:04:13]} 18. Ne1 {[%emt 0:01:16]} Rg7 {[%emt 0:00:31]} 19. f3 {[%emt 0:14:25]} gxf3 {[%emt 0:03:40]} 20. Nxf3 {[%emt 0:00:02]} Rf8 {[%emt 0:00:53]} 21. Rce1 {[%emt 0:08:11]} Rg6 {[%emt 0:02:47]} 22. Bc3 {[%emt 0:12:11]} Rf7 {[%emt 0:02:17]} 23. Qb2 {[%emt 0:01:17]} Rh6 {[%emt 0:07:11]} 24. Rb1 {[%emt 0:01:18]} Rg7 {[%emt 0:02:05]} 25. b4 {[%emt 0:03:52]} Qe8 {[%emt 0:09:58]} 26. Be1 {[%emt 0:02:25]} Ndf6 {[%emt 0:02:41]} 27. b5 {[%emt 0:01:49]} a5 {[%emt 0:00:18]} 28. Rc1 {[%emt 0:00:12]} Ng4 {[%emt 0:01:01]} 29. g3 {[%emt 0:02:33]} Rh3 {[%emt 0:04:42]} 30. Rg2 {[%emt 0:00:33]} Qh5 {[%emt 0:01:54]} 31. Nh4 {[%emt 0:02:26]} Bc8 {[%emt 0:06:34]} 32. Qe2 {[%emt 0:00:01]} Bd7 {[%emt 0:01:26]} 33. a4 {[%emt 0:00:29]} Kf8 {[%emt 0:01:03]} 34. Bc2 {[%emt 0:02:51]} Ke8 {[%emt 0:02:28]} 35. Bb3 {[%emt 0:00:10]} Be6 {[%emt 0:00:19]} 36. Qa2 {[%emt 0:00:20]} Ngf6 {[%emt 0:01:16]} 37. Bd1 {[%emt 0:00:24]} Qh6 {[%emt 0:00:38]} 38. Qe2 {[%emt 0:00:16]} Ng4 {[%emt 0:00:37]} 39. Bc2 {[%emt 0:02:00]} Kd8 {[%emt 0:00:46]} 40. Bd3 {[%emt 0:01:13]} Nxh2 {[%emt 0:06:23]} 41. Bxe4 {[%emt 0:05:24]} Nxf1 {[%emt 0:00:55]} 42. Qxf1 {[%emt 0:00:53]} fxe4 {[%emt 0:01:17]} 43. Rcc2 {[%emt 0:00:00]} Qxe3+ {[%emt 0:00:56]} 44. Bf2 {[%emt 0:00:24]} Qh6 {[%emt 0:00:40]} 45. Be1 {[%emt 0:00:34]} Rxh4 {[%emt 0:01:32]} 46. gxh4 {[%emt 0:00:20]} Bh3 {[%emt 0:00:02]} 47. Bd2 {[%emt 0:00:58]} e3 {[%emt 0:00:41]} 48. Be1 {[%emt 0:00:41]} Bxg2 {[%emt 0:01:09]} 49. Rxg2 {[%emt 0:00:01]} Rxg2+ {[%emt 0:00:28]} 50. Kxg2 {[%emt 0:00:24]} Qf4 {[%emt 0:00:25]} 51. Qd3 {[%emt 0:01:04]} Qe4+ {[%emt 0:01:05]} 52. Qxe4 {[%emt 0:00:07]} dxe4 {[%emt 0:00:01]} 53. h5 {[%emt 0:01:08]} Kd7 {[%emt 0:00:14]} 54. Bh4 {[%emt 0:00:22]} Ke6 {[%emt 0:00:25]} 55. Kf1 {[%emt 0:00:15]} Kd5 {[%emt 0:00:20]} 56. Bf6 {[%emt 0:00:11]} Kc4 {[%emt 0:00:44]} 57. Ke2 {[%emt 0:00:04]} Bf4 {[%emt 0:00:14]} 58. Bg7 {[%emt 0:00:34]} Kd5 {[%emt 0:01:01]} 59. Bf6 {[%emt 0:00:27]} Kc4 {[%emt 0:00:30]} 60. Bg7 {[%emt 0:00:13]} Kb4 {[%emt 0:01:23]} 61. Be5 {[%emt 0:00:03]} Bxe5 {[%emt 0:00:33]} 62. dxe5 {[%emt 0:00:01]} Kc5 {[%emt 0:00:00]} 63. Kxe3 {[%emt 0:00:13]} Kd5 {[%emt 0:00:03]} 64. e6 {[%emt 0:00:47]} Kxe6 {[%emt 0:00:02]} 65. Kxe4 {[%emt 0:00:08]} h6 {[%emt 0:00:29]} 66. Kd4 {[%emt 0:00:47]} Kd6 {[%emt 0:00:15]} 67. Ke4 {[%emt 0:00:22]} c6 {[%emt 0:00:41]} 68. bxc6 {[%emt 0:01:30]} Kxc6 {[%emt 0:00:19]} 69. Kf5 {[%emt 0:01:01]} b5 {[%emt 0:00:16]} 70. axb5+ {[%emt 0:00:06]} Kxb5 {[%emt 0:00:04]} 71. Kg6 {[%emt 0:00:04]} a4 {[%emt 0:00:03]} 72. Kxh6 {[%emt 0:00:06]} a3 {[%emt 0:00:04]} 73. Kh7 {[%emt 0:00:34]} a2 {[%emt 0:00:06]} 74. h6 {[%emt 0:00:03]} a1=Q {[%emt 0:04:45]} 75. Kg8 {[%emt 0:00:04]} Qg1+ {[%emt 0:00:00]} 76. Kh8 {[%emt 0:00:09]} Qd4+ {[%emt 0:00:00]} 77. Kg8 {[%emt 0:01:19]} Qd8+ {[%emt 0:00:00]} 78. Kg7 {[%emt 0:00:20]} Qg5+ {[%emt 0:00:00]} 0-1

[Event "50th La Roda Open 2024"]
[Site "La Roda"]
[Date "2024.03.29"]
[Round "5.1"]
[White "Peralta, Fernando"]
[Black "Aravindh, Chithambaram VR."]
[Result "0-1"]
[ECO "D35"]
[WhiteElo "2580"]
[BlackElo "2662"]
[Annotator "TA"]
[PlyCount "108"]
[EventDate "2024.03.27"]
[EventType "swiss"]
[EventCountry "ESP"]
[SourceTitle "playchess.com"]
[Source "ChessBase"]
[SourceQuality "1"]
[TimeControl "5400+30"]

{[%evp 18,108,0,0,9,12,16,0,0,0,0,-15,-25,-19,-19,-19,4,11,2,0,6,0,0,0,8,8,16,0,0,-29,14,0,25,-20,-30,-225,-217,-227,-210,-208,-210,-204,-221,-221,-221,-352,-359,-325,-356,-344,-297,-350,-350,-492,-460,-442,-412,-442,-143,-529,-572,-579,-537,-575,-589,-602,-585,-395,-570,-1237,-571,-606,-461,-589,0,-559,-473,-425,-159,-165,-162,-170,-168,-170,-157,-156,-43,-43,-43,-246,-243,-190,-203]} 1. d4 {[%emt 0:00:30]} Nf6 {[%emt 0:00:19]} 2. c4 {[%emt 0:00:00]} e6 {[%emt 0:00:07]} 3. Nc3 {[%emt 0:00:00]} d5 {[%emt 0:00:12]} 4. cxd5 {[%emt 0:00:20]} exd5 {[%emt 0:00:09]} 5. Bg5 {[%emt 0:00:19]} c6 {[%emt 0:00:15]} 6. e3 {[%emt 0:00:21]} Bd6 {[%emt 0:00:15]} 7. Bd3 {[%emt 0:03:19]} O-O {[%emt 0:00:25]} 8. Nf3 {[%emt 0:01:45]} Re8 {[%emt 0:19:13]} 9. Qc2 {[%emt 0:01:10]} h6 {[%emt 0:00:23]} 10. Bh4 {[%emt 0:00:03]} Be6 {[%emt 0:00:34]} 11. Ne5 {[%emt 0:06:35]} c5 {[%emt 0:00:14]} 12. O-O {[%emt 0:04:14][%cal Od3h7]} Nc6 {[%emt 0:05:33] The position is equal.} 13. Nxc6 {[%emt 0:05:18]} bxc6 {[%emt 0:00:14]} 14. Bg3 {[%emt 0:08:00]} Bxg3 {[%emt 0:25:59]} 15. hxg3 {[%emt 0:00:11]} cxd4 {[%emt 0:00:12]} 16. exd4 {[%emt 0:00:10]} Ng4 {[%emt 0:00:05]} 17. Qd2 {[%emt 0:04:49]} h5 {[%emt 0:00:07]} 18. Be2 {[%emt 0:13:51]} Qf6 {[%emt 0:04:31]} 19. Bxg4 {[%emt 0:03:06]} hxg4 {[%emt 0:00:53]} 20. Rfe1 {[%emt 0:00:26]} g6 {[%emt 0:01:25]} 21. Re5 {[%emt 0:24:20]} Kg7 {[%emt 0:00:30]} 22. Rae1 {[%emt 0:00:30]} Rh8 {[%emt 0:39:55]} 23. Qf4 Bf5 {[%emt 0:00:00]} (23... Rh6 {simplifies} 24. Qxf6+ Kxf6 25. R5e3 Rah8) 24. Nd1 {[%emt 0:08:30]} Rh5 {[%emt 0:00:00]} 25. Ne3 {[%emt 0:01:44]} (25. f3 {simplifies} Be6 26. Qxf6+ Kxf6 27. Rxh5 gxh5 28. Kf2) 25... Rah8 $40 {[%emt 0:00:00][%csl Gh8][%cal Rh5h1][%mdl 128] Black is up to no good.} 26. Nxf5+ $2 {[%emt 0:03:37]} (26. f3 $1 $11 {and White is okay.}) 26... Qxf5 $19 {[%emt 0:00:00][%csl Gh8][%cal Rh5h1]} ({Inferior is} 26... gxf5 27. f3 $11) 27. f3 {[%emt 0:00:32]} Qxf4 {[%emt 0:00:00]} 28. gxf4 {[%emt 0:00:05]} g3 {[%emt 0:00:00]} 29. Rxh5 {[%emt 0:00:07]} gxh5 {[%emt 0:00:00][%mdl 4096] Endgame. KR-KR} 30. Kf1 {[%emt 0:01:37]} h4 {[%emt 0:00:00]} 31. Rc1 {[%emt 0:03:10]} (31. Re5 {was necessary.}) 31... Rb8 {[%emt 0:00:00]} 32. b3 {[%emt 0:00:29]} Rb6 {[%emt 0:00:00]} 33. Ke2 {[%emt 0:01:23]} Kg6 {[%emt 0:03:03]} 34. Rh1 {[%emt 0:02:27]} Kh5 {[%emt 0:00:04]} 35. Kd3 {[%emt 0:01:40]} (35. Rb1 $142) 35... Ra6 {[%emt 0:00:14]} 36. a4 {[%emt 0:00:08]} Rb6 {[%emt 0:00:06]} 37. Kc3 {[%emt 0:00:37]} Rb8 {[%emt 0:00:08]} (37... a5 $1 $19 38. Re1 h3 39. Re5+ Kh6 (39... Kh4 $2 40. Re8 $18) 40. gxh3 f6) 38. a5 $2 {[%emt 0:02:34][%mdl 8192]} (38. b4 $17 {nothing else works.}) 38... Rb5 {[%emt 0:00:51]} 39. b4 {[%emt 0:00:07]} Rb8 {[%emt 0:00:04]} 40. Rh3 {[%emt 0:00:40]} Rh8 {[%emt 0:00:26]} 41. Kd2 {[%emt 0:00:51]} Kg6 {[%emt 0:00:20]} 42. Ke3 {[%emt 0:00:34]} Kf5 {[%emt 0:02:26]} (42... Rh5 $142 43. Ke2 Kf5) 43. Rh1 {[%emt 0:00:08]} Kf6 {[%emt 0:00:59]} (43... h3 $142 44. Rxh3 Rxh3 45. gxh3 a6) 44. Rh3 {[%emt 0:00:13]} Kg6 {[%emt 0:00:16]} 45. Kd3 {[%emt 0:01:27]} Kf6 {[%emt 0:01:19]} 46. Ke3 {[%emt 0:00:17]} Ke6 {[%emt 0:00:52]} 47. Rh1 {[%emt 0:01:06]} f6 $2 {[%emt 0:00:12]} (47... Kf5 $19 {[%cal Oh4h3] is more deadly. Threatens to win with ...h3!} 48. Rh3 Rh6) 48. Rh3 $17 {[%emt 0:00:30]} Rh5 {[%emt 0:00:35]} 49. Ke2 {[%emt 0:00:33]} Rh6 {[%emt 0:00:28]} 50. Ke3 {[%emt 0:00:20]} Rh7 {[%emt 0:00:05]} 51. Kd3 {[%emt 0:00:43]} f5 {[%emt 0:01:22]} ({Black should try} 51... Kf5 $17 52. Ke3 Rb7 53. Rxh4 Rxb4 54. Rh5+ Kg6) 52. Ke3 {[%emt 0:00:31]} Kd6 {[%emt 0:00:07] aiming for ...Kc7.} 53. Rh1 $2 {[%emt 0:00:25] [#]} (53. Kd3 $15) 53... Kc7 $1 $19 {[%emt 0:00:16]} 54. Kd3 {[%emt 0:00:31] [#]} Kb7 $1 {[%emt 0:00:03] Weighted Error Value: White=0.50/Black=0.39.  Loses game:     	White=3     	---        Missed win:     	---       	Black=2      Mistake:       	White=2     	Black=2      Inaccurate:     	White=3     	Black=1      OK:         	White=14    	Black=16     Best:        	White=3     	Black=3      Strong:       	---       	Black=2} 0-1

[Event "50th La Roda Open 2024"]
[Site "La Roda"]
[Date "2024.03.29"]
[Round "5.2"]
[White "Xu, Xiangyu"]
[Black "Siddharth, Jagadeesh"]
[Result "1/2-1/2"]
[ECO "A45"]
[WhiteElo "2623"]
[BlackElo "2490"]
[Annotator "TA"]
[PlyCount "30"]
[EventDate "2024.03.27"]
[EventType "swiss"]
[EventCountry "ESP"]
[SourceTitle "playchess.com"]
[Source "ChessBase"]
[SourceQuality "1"]
[TimeControl "5400+30"]

{[%evp 10,30,18,-15,-8,-14,-12,0,11,9,12,4,12,2,63,51,51,0,0,0,55,4,22]} 1. d4 {[%emt 0:00:03]} Nf6 {[%emt 0:00:09]} 2. Bg5 {[%emt 0:00:10]} c5 {[%emt 0:00:30]} 3. Bxf6 {[%emt 0:00:21]} gxf6 {[%emt 0:00:07]} 4. d5 {[%emt 0:00:06]} Qb6 {[%emt 0:00:16]} 5. Qc1 {[%emt 0:00:11]} f5 {[%emt 0:00:05]} 6. g3 {[%emt 0:01:32]} d6 {[%emt 0:04:47]} 7. Bg2 {[%emt 0:05:15]} Nd7 {[%emt 0:00:06]} 8. Nd2 {[%emt 0:01:07]} Nf6 {[%emt 0:02:37]} 9. e3 {[%emt 0:00:37]} Qa6 {[%emt 0:11:14]} 10. Ne2 {[%emt 0:06:33]} b5 {[%emt 0:01:27][%cal Bb7b5,Bb5c4][%mdl 32]} 11. O-O {[%emt 0:05:38]} Bb7 {[%emt 0:01:38]} (11... Rb8 $11) 12. c4 $14 {[%emt 0:00:27]} bxc4 {[%emt 0:01:14]} 13. Nc3 {[%emt 0:00:10]} (13. Qxc4 Qxc4 14. Nxc4 Bxd5 15. Bxd5 Nxd5 $15) (13. Nxc4 Bxd5 14. Bxd5 Nxd5 $17) (13. Nf4 $14) 13... Bg7 $11 {[%emt 0:03:09]} 14. Qc2 {[%emt 0:28:56]} O-O {[%emt 0:00:22]} ({Better is} 14... e6 $11) 15. b3 {[%emt 0:03:21]} (15. Qxf5 $14 Bc8 16. Qc2 (16. Qf4 Ng4 $11)) 15... Ne4 {[%emt 0:06:06] Weighted Error Value: White=0.18 (very precise) /Black=0.21 (precise) .  Mistake:       	White=2     	Black=2      OK:         	White=2     	Black=6} 1/2-1/2